fUSD/lending_fUSD_20250308
["ID","MTS","AMOUNT","RATE_DAILY","PERIOD"]
[355651582,1741437461039,-500.0,0.00037788,120]
[355651583,1741437461067,-100000.0,0.00038,38]
[355651584,1741437461093,-2000000.0,0.00038,120]
[355651585,1741437461118,-1000.0,0.00038,120]
[355651586,1741437461143,-2000.0,0.00038,120]
[355651587,1741437461168,-1000.0,0.00038,45]
[355651588,1741437461193,-1000000.0,0.00038,120]
[355651589,1741437461222,-1000000.0,0.00038,120]
[355651590,1741437461246,-1532.50774327,0.00038,120]
[355651591,1741437461271,-6226.4,0.00038,120]
[355651592,1741437461296,-2351.97736725,0.00038,120]
[355651593,1741437461321,-1000.0,0.0003815,45]
[355651594,1741437461345,-1000.0,0.0003825,45]
[355651595,1741437461369,-1647.31845629,0.00038287,35]
[355651596,1741437461394,-524.10749,0.000383,120]
[355651597,1741437461419,-871.85,0.00038356,120]
[355651598,1741437461443,-667.83616769,0.000384,33]
[355651599,1741437461468,-3002.68,0.000384,120]
[355651600,1741437461494,-2232.95,0.000384,120]
[355651601,1741437461519,-252.46,0.000384,120]
[355651602,1741437461544,-267.92,0.000384,120]
[355651603,1741437461568,-3269.94,0.0003844,120]
[355651604,1741437461592,-601.02,0.0003844,120]
[355651605,1741437461617,-649.75,0.0003844,120]
[355651606,1741437461643,-801813.69496419,0.000385,120]
[355651607,1741437467625,-500.0,0.00023111,30]
[355651608,1741437467652,-500.0,0.00023111,30]
[355651609,1741437467677,-598.07278961,0.00023111,30]
[355651610,1741437467703,-500.0,0.00023111,30]
[355651611,1741437467728,-500.0,0.00023111,30]
[355651612,1741437467753,-500.0,0.00023111,30]
[355651613,1741437467778,-500.0,0.00023111,30]
[355651614,1741437467803,-500.0,0.00023111,30]
[355651615,1741437467828,-500.0,0.00023111,30]
[355651616,1741437467853,-500.0,0.00023111,30]
[355651617,1741437467878,-968.65579765,0.00023111,30]
[355651618,1741437467903,-500.0,0.00023111,30]
[355651619,1741437467929,-500.0,0.00023111,30]
[355651620,1741437467959,-500.0,0.00023111,30]
[355651621,1741437467986,-500.0,0.00023111,30]
[355651622,1741437468011,-500.0,0.00023111,30]
[355651623,1741437468069,-500.0,0.00028326,30]
[355651624,1741437468095,-500.0,0.00028326,30]
[355651625,1741437468122,-500.0,0.00028326,30]
[355651626,1741437468148,-500.0,0.00028326,30]
[355651627,1741437468175,-500.0,0.00028326,30]
[355651628,1741437468201,-500.0,0.00028326,30]
[355651629,1741437468230,-500.0,0.00028326,30]
[355651630,1741437468267,-198186.30503581,0.000385,120]
[355651631,1741437468294,-1000000.0,0.000385,120]
[355651632,1741437468321,-2000000.0,0.000385,120]
[355651633,1741437468348,-2327.38,0.000385,120]
[355651634,1741437468375,-500.0,0.00038605,120]
[355651635,1741437468402,-175.79195112,0.000387,120]
[355651636,1741437468429,-565514.9500629,0.000388,120]
[355651637,1741437468457,-2255.47,0.00038884,120]
[355651638,1741437468484,-100000.0,0.00039,39]
[355651639,1741437468510,-1409.99793378,0.00039,120]
[355651640,1741437468537,-633.10052463,0.00039,120]
[355651641,1741437468562,-2000.0,0.00039,120]
[355651642,1741437468589,-1000000.0,0.00039,120]
[355651643,1741437468616,-114930.2759045,0.00039,120]
[355651644,1741437477201,-500.0,0.00023111,30]
[355651645,1741437477230,-714.70887258,0.00023111,30]
[355651646,1741437477280,-333.26976982,0.00029858,30]
[355651647,1741437477304,-333.26976982,0.00029934,30]
[355651648,1741437477332,-333.26976982,0.00030396,30]
[355651649,1741437477361,-333.26976982,0.0003045,30]
[355651650,1741437477386,-333.26976982,0.00030936,30]
[355651651,1741437477412,-333.26976982,0.00031038,30]
[355651652,1741437477436,-333.26976982,0.0003143,30]
[355651653,1741437477460,-333.26976982,0.00031509,30]
[355651654,1741437477484,-333.26976982,0.00031903,30]
[355651655,1741437477508,-333.26976982,0.00032076,30]
[355651656,1741437477533,-333.26976982,0.00032386,30]
[355651657,1741437477559,-333.26976982,0.00032794,30]
[355651658,1741437477584,-333.26976982,0.00033043,30]
[355651659,1741437477608,-333.26976982,0.00033374,30]
[355651660,1741437477632,-333.26976982,0.0003348,30]
[355651661,1741437477656,-333.26976982,0.00033908,30]
[355651662,1741437477681,-333.26976982,0.00034017,30]
[355651663,1741437477706,-333.26976982,0.00034339,30]
[355651664,1741437477731,-333.26976982,0.00034579,30]
[355651665,1741437477756,-333.26976982,0.00034966,30]
[355651666,1741437477784,-2468.0,0.00037,117]
[355651667,1741437477811,-2715.9,0.00038909,117]
[355651668,1741437477837,-1885069.7240955,0.00039,120]
[355651669,1741437477863,-1050.0,0.00039,120]
[355651670,1741437477889,-270.568,0.00039,120]
[355651671,1741437477914,-154.45856405,0.00039,120]
[355651672,1741437477941,-150.0,0.00039283,120]
[355651673,1741437477966,-500.0,0.00039421,120]
[355651674,1741437478251,-524.10755,0.000395,120]
[355651675,1741437478277,-2000000.0,0.000395,120]
[355651676,1741437478303,-1000000.0,0.000395,120]
[355651677,1741437478329,-99217.13752147,0.000395,120]
[355651678,1741437483123,-2021.2,0.000281,30]
[355651679,1741437483156,-500.0,0.00033206,60]
[355651680,1741437483182,-333.26976982,0.0003528,30]
[355651681,1741437483208,-333.26976982,0.00035462,30]
[355651682,1741437483237,-333.26976982,0.00035776,30]
[355651683,1741437483264,-333.26976998,0.00036044,30]
[355651684,1741437483289,-1515.9,0.000361,30]
[355651685,1741437483318,-900782.86247853,0.000395,120]
[355651686,1741437483343,-3568.768,0.000398,60]
[355651687,1741437483367,-1000.0,0.00039849,120]
[355651688,1741437483392,-433.71871644,0.00039886,60]
[355651689,1741437483418,-200000.0,0.00039888,30]
[355651690,1741437483443,-428.0,0.00039986,90]
[355651691,1741437483470,-100000.0,0.0004,40]
[355651692,1741437483498,-705.0,0.0004,60]
[355651693,1741437483524,-1000.0,0.0004,120]
[355651694,1741437483549,-652.63634513,0.0004,120]
[355651695,1741437483575,-984.73947855,0.0004,120]
[355651696,1741437483600,-187.33845967,0.0004,120]
[355651697,1741437483626,-2000.0,0.0004,120]
[355651698,1741437483652,-1200.0,0.0004,120]
[355651699,1741437483678,-1000000.0,0.0004,120]
[355651700,1741437483704,-2000000.0,0.0004,120]
[355651701,1741437483730,-200.0,0.0004,120]
[355651702,1741437484006,-43399.7837054,0.0004,120]
[355651703,1741437484035,-185.0,0.0004,60]
[355651704,1741437484062,-192.21212633,0.0004,30]
[355651705,1741437484089,-865.36150427,0.0004,120]
[355651706,1741437484115,-173.5092,0.0004,120]
[355651707,1741437484143,-1532.50774327,0.0004,120]
[355651708,1741437484171,-2351.97736725,0.0004,120]
[355651709,1741437484199,-2526.73,0.0004,120]
[355651710,1741437484231,-500.0,0.00040238,120]
[355651711,1741437484262,-832.0,0.00040746,60]
[355651712,1741437484292,-5925.59,0.00040818,117]
[355651713,1741437484320,-2009.09678,0.00040888,30]
[355651714,1741437484350,-100000.0,0.00041,41]
[355651715,1741437484378,-372.7557286,0.00041,30]
[355651716,1741437484406,-620620.23328712,0.00041,120]
[355651717,1741437488914,-1000.0,0.00021917,120]
[355651718,1741437488939,-1000.0,0.00021917,120]
[355651719,1741437488964,-1000.0,0.00021917,120]
[355651720,1741437488989,-1000.0,0.00021917,120]
[355651721,1741437489015,-1000.0,0.00021917,120]
[355651722,1741437489045,-1000.0,0.00021917,120]
[355651723,1741437489069,-1000.0,0.00021917,120]
[355651724,1741437489129,-500.0,0.00033754,60]
[355651725,1741437489155,-500.0,0.00034302,60]
[355651726,1741437489180,-500.0,0.0003485,60]
[355651727,1741437489204,-500.0,0.00035398,60]
[355651728,1741437489234,-500.0,0.00035946,60]
[355651729,1741437489259,-500.0,0.00036494,60]
[355651730,1741437489283,-500.0,0.00037042,60]
[355651731,1741437489307,-500.0,0.0003759,60]
[355651732,1741437489334,-379379.76671288,0.00041,120]
[355651733,1741437489357,-950.0,0.00041,120]
[355651734,1741437489382,-2183.74962908,0.00041044,45]
[355651735,1741437489408,-500.0,0.00041054,120]
[355651736,1741437489432,-2009.09678,0.00041088,30]
[355651737,1741437489457,-500.0,0.00041095,120]
[355651738,1741437489481,-500.0,0.00041095,120]
[355651739,1741437489505,-500.0,0.00041095,120]
[355651740,1741437489529,-500.0,0.00041095,120]
[355651741,1741437489554,-500.0,0.00041095,120]
[355651742,1741437489578,-369.99036655,0.00041095,120]
[355651743,1741437489604,-2009.09678,0.00041288,30]
[355651744,1741437489630,-2009.09678,0.00041488,30]
[355651745,1741437489654,-200.0,0.00041568,120]
[355651746,1741437489679,-2009.09678,0.00041688,30]
[355651747,1741437489707,-500.0,0.00041871,120]
[355651748,1741437489733,-2009.09678,0.00041888,30]
[355651749,1741437489763,-620.52150773,0.00041999,120]
[355651750,1741437489790,-100000.0,0.00042,42]
[355651751,1741437489816,-1000.0,0.00042,120]
[355651752,1741437489844,-1000000.0,0.00042,120]
[355651753,1741437489869,-342.84394739,0.00042,120]
[355651754,1741437489893,-3031.80362973,0.00042,120]
[355651755,1741437489918,-348.06641073,0.00042,120]
[355651756,1741437489942,-5000.0,0.00042,120]
[355651757,1741437489966,-10000.0,0.00042,120]
[355651758,1741437489991,-200.43492474,0.00042,60]
[355651759,1741437490017,-1762.50997717,0.00042,120]
[355651760,1741437490043,-152.0,0.00042,120]
[355651761,1741437490068,-2009.09678,0.00042088,30]
[355651762,1741437490092,-2009.09678,0.00042288,30]
[355651763,1741437490117,-200.0,0.000424,120]
[355651764,1741437490142,-2009.09678,0.00042488,30]
[355651765,1741437490175,-150.0,0.00042612,120]
[355651766,1741437490200,-372.552,0.00042625,120]
[355651767,1741437490226,-372.553,0.00042625,120]
[355651768,1741437490251,-372.553,0.00042625,120]
[355651769,1741437490279,-372.553,0.00042625,120]
[355651770,1741437490305,-372.553,0.00042625,120]
[355651771,1741437490331,-500.0,0.00042687,120]
[355651772,1741437490356,-2009.09678,0.00042688,30]
[355651773,1741437490380,-6419.4,0.00042727,117]
[355651774,1741437490404,-172.75,0.0004274,91]
[355651775,1741437490428,-2877.99,0.000428,60]
[355651776,1741437490451,-3866.98,0.0004288,60]
[355651777,1741437490475,-2009.09678,0.00042888,30]
[355651778,1741437490501,-100000.0,0.00043,43]
[355651779,1741437490527,-1000000.0,0.00043,120]
[355651780,1741437490552,-1000000.0,0.00043,120]
[355651781,1741437490576,-2814.95960267,0.00043,120]
[355651782,1741437490600,-158.48555602,0.00043,120]
[355651783,1741437490623,-533596.44014879,0.00043,30]
[355651784,1741437490649,-3065.01548653,0.00043,120]
[355651785,1741437490673,-4703.95473451,0.00043,120]
[355651786,1741437490696,-2009.09678,0.00043088,30]
[355651787,1741437490721,-200.0,0.00043232,120]
[355651788,1741437490746,-2009.09678,0.00043288,30]
[355651789,1741437490770,-2255.47,0.00043362,120]
[355651790,1741437490802,-2009.09678,0.00043488,30]
[355651791,1741437490825,-3525.44947447,0.000435,60]
[355651792,1741437490850,-787470.39575101,0.000435,120]
[355651793,1741437492645,3314.68466475,7.546e-05,2]
[355651794,1741437492668,10000.0,7.546e-05,2]
[355651795,1741437492690,10000.0,7.546e-05,2]
[355651796,1741437492712,585.31533525,7.546e-05,2]
[355651797,1741437509515,863.323,8.055e-05,2]
[355651798,1741437565263,-555.06779842,0.00021917,120]
[355651799,1741437565326,-160.06562781,0.00032149,120]
[355651800,1741437565357,-863.323,0.00033541,36]
[355651801,1741437565387,-500.0,0.00038138,60]
[355651802,1741437565416,-1000.0,0.00038556,60]
[355651803,1741437565443,-500.0,0.00038686,60]
[355651804,1741437565470,-1000.0,0.00039104,60]
[355651805,1741437565496,-500.0,0.00039234,60]
[355651806,1741437565522,-183.69916286,0.00039782,60]
[355651807,1741437565550,-500.0,0.0004033,60]
[355651808,1741437565580,-589.25296217,0.00041426,60]
[355651809,1741437565608,-212529.60424899,0.000435,120]
[355651810,1741437565633,-157.6348385,0.000435,120]
[355651811,1741437565659,-500.0,0.00043504,120]
[355651812,1741437565684,-2009.09678,0.00043688,30]
[355651813,1741437565709,-239.35186367,0.000437,120]
[355651814,1741437565735,-150.0,0.00043815,120]
[355651815,1741437565760,-517.98509092,0.00043835,120]
[355651816,1741437565786,-609.0,0.00043836,30]
[355651817,1741437565811,-1000.0,0.00043987,120]
[355651818,1741437565838,-518.04458019,0.00043998,120]
[355651819,1741437565865,-100000.0,0.00044,44]
[355651820,1741437565890,-10000.0,0.00044,120]
[355651821,1741437565915,-10365.95500123,0.00044,120]
[355651822,1741437565940,-894914.77477771,0.00044,30]
[355651823,1741437565965,-200512.18615789,0.00044,120]
[355651824,1741437565990,-2050.0,0.00044,120]
[355651825,1741437566016,-1000.0,0.00044,120]
[355651826,1741437566042,-1000000.0,0.00044,120]
[355651827,1741437566069,-2000000.0,0.00044,120]
[355651828,1741437566094,-10000.0,0.00044,120]
[355651829,1741437566120,-850.0,0.00044,120]
[355651830,1741437566145,-20000.0,0.00044,30]
[355651831,1741437566168,-19356.41117776,0.00044,120]
[355651832,1741437566194,-516.720026,0.00044,57]
[355651833,1741437566219,-152.0,0.00044,120]
[355651834,1741437566243,-2024.31,0.00044052,30]
[355651835,1741437566268,-200.0,0.00044064,120]
[355651836,1741437566292,-2009.09678,0.00044088,30]
[355651837,1741437566318,-100189.0,0.000442,30]
[355651838,1741437566342,-2009.09678,0.00044288,30]
[355651839,1741437566366,-560.88999,0.0004432,120]
[355651840,1741437566390,-472.64,0.000444,120]
[355651841,1741437566654,-336.22094051,0.0004444,30]
[355651842,1741437566679,-2009.09678,0.00044488,30]
[355651843,1741437566705,-927.44012583,0.000445,120]
[355651844,1741437566731,-6913.2,0.00044636,117]
[355651845,1741437566756,-2009.09678,0.00044688,30]
[355651846,1741437566782,-2209.68078847,0.000448,62]
[355651847,1741437566806,-5100.0,0.0004488,31]
[355651848,1741437566833,-5100.0,0.0004488,32]
[355651849,1741437566858,-5100.0,0.0004488,33]
[355651850,1741437566883,-5100.0,0.0004488,34]
[355651851,1741437566908,-2009.09678,0.00044888,30]
[355651852,1741437566933,-563.12488686,0.00044895,120]
[355651853,1741437566957,-200.0,0.00044896,120]
[355651854,1741437566982,-30000.0,0.000449,120]
[355651855,1741437567008,-4000.0,0.00044984,60]
[355651856,1741437567034,-100000.0,0.00045,45]
[355651857,1741437567058,-151.0,0.00045,120]
[355651858,1741437567088,-200.0,0.00045,120]
[355651859,1741437567113,-151.0,0.00045,120]
[355651860,1741437567138,-158.2,0.00045,85]
[355651861,1741437567166,-225997.63627421,0.00045,120]
[355651862,1741437613719,1036.87,7.563e-05,2]
[355651863,1741437655687,-444.44444,0.000304,120]
[355651864,1741437655713,-548.0,0.00030613,30]
[355651865,1741437655740,-444.44444,0.000316,120]
[355651866,1741437655766,-444.44444,0.000328,120]
[355651867,1741437655794,-284.0,0.00033674,30]
[355651868,1741437655820,-444.44444,0.00034,120]
[355651869,1741437655847,-444.44444,0.000352,120]
[355651870,1741437655873,-319.20301797,0.00035524,120]
[355651871,1741437655898,-316.91201831,0.00035524,120]
[355651872,1741437655926,-444.44444,0.000364,120]
[355651873,1741437655952,-939.34504349,0.000372,103]
[355651874,1741437655980,-939.34504347,0.000372,103]
[355651875,1741437656006,-939.34504347,0.000372,103]
[355651876,1741437656031,-939.34504347,0.000372,103]
[355651877,1741437656059,-939.34504347,0.000372,103]
[355651878,1741437656085,-444.44444,0.000376,120]
[355651879,1741437656112,-767.51378425,0.000384,33]
[355651880,1741437656140,-3255.14,0.000384,120]
[355651881,1741437656166,-2500.87,0.000384,120]
[355651882,1741437656192,-4520.71,0.0003844,120]
[355651883,1741437656219,-444.44444,0.000388,120]
[355651884,1741437656246,-1000.0,0.00039652,60]
[355651885,1741437656276,-2526.73,0.0004,120]
[355651886,1741437656302,-444.44448,0.0004,120]
[355651887,1741437656329,-1000.0,0.000402,60]
[355651888,1741437656356,-1000.0,0.00040748,60]
[355651889,1741437656384,-1000000.0,0.00041,120]
[355651890,1741437656412,-1000.0,0.00041296,60]
[355651891,1741437656442,-420.97234083,0.00041826,30]
[355651892,1741437656467,-420.97234083,0.00041947,30]
[355651893,1741437656495,-1999999.0,0.00042,120]
[355651894,1741437656521,-420.97234083,0.00042294,30]
[355651895,1741437656548,-1000.0,0.00042392,60]
[355651896,1741437656575,-1000000.0,0.000425,120]
[355651897,1741437656604,-2000000.0,0.000425,120]
[355651898,1741437656630,-420.97234083,0.00042737,30]
[355651899,1741437656656,-420.97234083,0.00042943,30]
[355651900,1741437656683,-1000000.0,0.00043,120]
[355651901,1741437656708,-420.97234083,0.00043044,30]
[355651902,1741437656735,-150.0,0.00043194,120]
[355651903,1741437656760,-1000.0,0.00043488,60]
[355651904,1741437656787,-1967589.36191712,0.000435,120]
[355651905,1741437661956,-1000000.0,0.000415,120]
[355651906,1741437661984,-32410.63808288,0.000435,120]
[355651907,1741437662010,-420.97234083,0.0004359,30]
[355651908,1741437662035,-518.04458019,0.00043998,120]
[355651909,1741437662061,-1000000.0,0.00044,120]
[355651910,1741437662086,-212.42,0.00044,120]
[355651911,1741437662113,-7403.9,0.00044,120]
[355651912,1741437662139,-7582.17,0.00044,120]
[355651913,1741437662165,-213.18014514,0.00044,120]
[355651914,1741437662191,-420.97234083,0.00044088,30]
[355651915,1741437662216,-420.97234083,0.00044228,30]
[355651916,1741437662240,-224.68,0.000445,120]
[355651917,1741437662265,-1000000.0,0.000445,120]
[355651918,1741437662296,-227.07,0.000445,120]
[355651919,1741437662323,-2000000.0,0.000445,120]
[355651920,1741437662349,-420.97234083,0.00044556,30]
[355651921,1741437662374,-1000.0,0.00044584,120]
[355651922,1741437662399,-58157.91291973,0.000448,30]
[355651923,1741437662425,-420.97234083,0.00044803,30]
[355651924,1741437662451,-1774002.36372579,0.00045,120]
[355651925,1741437662476,-2000000.0,0.00045,120]
[355651926,1741437662502,-286.59295757,0.00045,68]
[355651927,1741437662526,-2179.74150381,0.00045,120]
[355651928,1741437662550,-1166.2377067,0.00045,30]
[355651929,1741437662575,-2587.7029596,0.00045,120]
[355651930,1741437662599,-837.42141661,0.00045,120]
[355651931,1741437662623,-3793.64147915,0.00045,120]
[355651932,1741437662648,-4000.0,0.00045,120]
[355651933,1741437662674,-10000.0,0.00045,120]
[355651934,1741437662698,-371.0485431,0.00045,120]
[355651935,1741437662725,-90720.37227558,0.00045,120]
[355651936,1741437667455,-2083.39,0.000281,30]
[355651937,1741437667484,-548.0,0.00030613,30]
[355651938,1741437667511,-172.77,0.00031644,91]
[355651939,1741437667543,-1562.54,0.000361,30]
[355651940,1741437667576,-172.77,0.0004274,91]
[355651941,1741437667604,-909279.62772442,0.00045,120]
[355651942,1741437667629,-856505.86790281,0.00045,30]
[355651943,1741437667655,-5000.0,0.00045,120]
[355651944,1741437667682,-10000.0,0.00045,120]
[355651945,1741437667708,-10000.0,0.00045,120]
[355651946,1741437667734,-2103.05,0.00045,120]
[355651947,1741437667761,-75190.44156815,0.00045,120]
[355651948,1741437667786,-18871.15580972,0.00045,120]
[355651949,1741437667817,-81127.81192795,0.00045,30]
[355651950,1741437667843,-158.60368545,0.00045,120]
[355651951,1741437667869,-1150.5543192,0.00045,60]
[355651952,1741437667896,-30517.49123268,0.00045,90]
[355651953,1741437667923,-200.000001,0.00045,120]
[355651954,1741437667950,-786.24195328,0.00045,120]
[355651955,1741437667977,-1000000.0,0.00045,120]
[355651956,1741437668005,-1000000.0,0.00045,120]
[355651957,1741437668033,-151.0,0.00045,120]
[355651958,1741437668060,-500.0,0.00045,120]
[355651959,1741437668086,-150.0,0.00045,30]
[355651960,1741437668112,-1993.04410675,0.00045085,120]
[355651961,1741437668137,-2009.09678,0.00045088,30]
[355651962,1741437668163,-2712.41108255,0.0004509,120]
[355651963,1741437668189,-3299.31764862,0.0004509,120]
[355651964,1741437668215,-333.3486263,0.0004509,120]
[355651965,1741437668241,-1040.5147012,0.00045091,120]
[355651966,1741437668266,-1348.83320043,0.00045093,120]
[355651967,1741437668299,-200.0,0.00045093,120]
[355651968,1741437668324,-1567.87044583,0.00045094,120]
[355651969,1741437668351,-296.73584707,0.00045095,120]
[355651970,1741437668378,-67281.92853388,0.00045096,120]
[355651971,1741437668405,-486.96257192,0.00045097,120]
[355651972,1741437668431,-12440.45947704,0.000451,120]
[355651973,1741437668457,-378.49248076,0.00045101,120]
[355651974,1741437668485,-2886.95739967,0.00045103,120]
[355651975,1741437668513,-333.98394682,0.00045104,120]
[355651976,1741437668539,-446.18879947,0.00045105,120]
[355651977,1741437668566,-2886.95739967,0.00045105,120]
[355651978,1741437668593,-1716.05037423,0.00045106,120]
[355651979,1741437668622,-307.74683025,0.00045109,120]
[355651980,1741437668650,-446.18879947,0.00045109,120]
[355651981,1741437668974,-587922.21784145,0.0004511,120]
[355651982,1741437669002,-435.93674881,0.00045111,120]
[355651983,1741437669030,-6365.44348451,0.00045111,120]
[355651984,1741437669056,-3621.50887498,0.00045113,120]
[355651985,1741437669082,-6353.52434207,0.00045113,120]
[355651986,1741437669107,-3299.31764862,0.00045115,120]
[355651987,1741437669132,-200.0,0.00045116,120]
[355651988,1741437669157,-3299.31764862,0.00045116,120]
[355651989,1741437669184,-872.49579223,0.00045117,120]
[355651990,1741437669211,-3818.17514385,0.00045118,120]
[355651991,1741437669235,-333.98394682,0.00045118,120]
[355651992,1741437669261,-295.024892,0.0004512,120]
[355651993,1741437669289,-435.93674881,0.00045122,120]
[355651994,1741437669314,-12440.45947704,0.00045127,120]
[355651995,1741437669340,-3222.57738925,0.00045131,120]
[355651996,1741437669366,-1000.0,0.00045132,120]
[355651997,1741437669392,-6271.4817833,0.00045134,120]
[355651998,1741437669418,-1567.87044583,0.00045135,120]
[355651999,1741437669443,-3101.23331275,0.00045137,120]
[355652000,1741437669468,-12440.45947704,0.00045138,120]
[355652001,1741437669495,-200.0,0.00045138,120]
[355652002,1741437669520,-13964.99818846,0.00045138,120]
[355652003,1741437669547,-67281.92853388,0.00045139,120]
[355652004,1741437669574,-16062.80996485,0.00045141,120]
[355652005,1741437669600,-378.49248076,0.00045142,120]
[355652006,1741437669626,-203.0926774,0.00045143,120]
[355652007,1741437669652,-6905.80670091,0.00045144,120]
[355652008,1741437669679,-1929.42552551,0.00045144,120]
[355652009,1741437669705,-333.3486263,0.00045144,120]
[355652010,1741437669732,-6905.80670091,0.00045146,120]
[355652011,1741437669758,-231.20706658,0.00045146,120]
[355652012,1741437669783,-1929.42552551,0.00045147,120]
[355652013,1741437669809,-446.18879947,0.00045149,120]
[355652014,1741437669836,-200.0,0.00045151,120]
[355652015,1741437669862,-13859.61962573,0.00045155,120]
[355652016,1741437669889,-872.49579223,0.00045155,120]
[355652017,1741437669916,-221.64430805,0.00045158,120]
[355652018,1741437669943,-333.98394682,0.00045159,120]
[355652019,1741437669968,-3299.31764862,0.0004516,120]
[355652020,1741437669995,-1993.04410675,0.00045161,120]
[355652021,1741437670022,-435.93674881,0.00045163,120]
[355652022,1741437670050,-16062.80996485,0.00045164,120]
[355652023,1741437670078,-1716.05037423,0.00045164,120]
[355652024,1741437670104,-25069.38076352,0.00045166,120]
[355652025,1741437670132,-872.49579223,0.00045167,120]
[355652026,1741437670160,-6271.4817833,0.00045169,120]
[355652027,1741437670197,-1040.5147012,0.0004518,120]
[355652028,1741437670227,-25069.38076352,0.00045181,120]
[355652029,1741437670258,-3621.50887498,0.00045181,120]
[355652030,1741437670289,-200.0,0.00045183,120]
[355652031,1741437670317,-231.20706658,0.00045185,120]
[355652032,1741437670344,-1929.42552551,0.0004519,120]
[355652033,1741437670373,-333.3486263,0.00045193,120]
[355652034,1741437670401,-6365.44348451,0.00045194,120]
[355652035,1741437670431,-17868.13226698,0.00045197,120]
[355652036,1741437670458,-3818.17514385,0.00045198,120]
[355652037,1741437670484,-200.0,0.00045198,120]
[355652038,1741437670510,-13964.99818846,0.00045199,120]
[355652039,1741437670538,-8105.0407168,0.00045204,120]
[355652040,1741437670563,-333.98394682,0.00045204,120]
[355652041,1741437670590,-486.96257192,0.00045207,120]
[355652042,1741437670618,-8105.0407168,0.00045207,120]
[355652043,1741437670644,-2313.11402703,0.00045208,120]
[355652044,1741437670672,-3621.50887498,0.00045211,120]
[355652045,1741437670697,-3222.57738925,0.00045214,120]
[355652046,1741437670723,-295.024892,0.00045217,120]
[355652047,1741437670749,-1085.202562,0.00045217,120]
[355652048,1741437670777,-200.0,0.00045218,120]
[355652049,1741437670804,-1085.202562,0.0004522,120]
[355652050,1741437670830,-3621.50887498,0.00045221,120]
[355652051,1741437670857,-872.49579223,0.00045222,120]
[355652052,1741437670884,-3101.23331275,0.00045222,120]
[355652053,1741437670911,-67281.92853388,0.00045226,120]
[355652054,1741437670943,-296.73584707,0.00045235,120]
[355652055,1741437670970,-1929.42552551,0.00045235,120]
[355652056,1741437670997,-200.0,0.00045237,120]
[355652057,1741437671025,-200.0,0.00045239,120]
[355652058,1741437671051,-333.3486263,0.00045239,120]
[355652059,1741437671077,-200.0,0.00045242,120]
[355652060,1741437671104,-307.74683025,0.00045243,120]
[355652061,1741437671130,-200.0,0.00045243,120]
[355652062,1741437671156,-378.49248076,0.00045246,120]
[355652063,1741437671186,-5257.94204526,0.00045247,120]
[355652064,1741437671213,-2712.41108255,0.0004525,120]
[355652065,1741437671239,-1567.87044583,0.00045252,120]
[355652066,1741437671267,-6365.44348451,0.00045255,120]
[355652067,1741437671297,-2313.11402703,0.00045258,120]
[355652068,1741437671325,-1085.202562,0.00045258,120]
[355652069,1741437671351,-296.73584707,0.00045258,120]
[355652070,1741437671379,-6271.4817833,0.00045258,120]
[355652071,1741437671406,-587922.21784145,0.00045258,120]
[355652072,1741437671432,-17868.13226698,0.00045258,120]
[355652073,1741437671458,-446.18879947,0.00045261,120]
[355652074,1741437671483,-307.74683025,0.00045262,120]
[355652075,1741437671509,-17868.13226698,0.00045263,120]
[355652076,1741437671534,-13859.61962573,0.00045264,120]
[355652077,1741437671560,-6905.80670091,0.00045267,120]
[355652078,1741437671587,-200.0,0.00045267,120]
[355652079,1741437671613,-2712.41108255,0.00045268,120]
[355652080,1741437671640,-221.64430805,0.0004527,120]
[355652081,1741437671667,-12440.45947704,0.00045273,120]